bitfinex/quotes_ETHUSD_20241106
["timestamp","ask_amount","ask_price","bid_price","bid_amount"]
[1730907427767,0.01,2643.3,2643.2,0.06614364]
[1730907427910,0.8083,2643.3,2643.2,0.06614364]
[1730907428112,0.01,2643.0,2642.8,0.005]
[1730907428626,3.7936,2643.0,2642.8,0.005]
[1730907428828,3.8883216,2642.9,2642.8,0.005]
[1730907429228,4.6685216,2642.9,2642.8,0.005]
[1730907429748,0.8848016,2642.9,2642.8,0.005]
[1730907429938,5.13635976,2642.9,2642.8,0.005]
[1730907432262,1.36263976,2642.9,2642.8,0.005]
[1730907432461,0.1146016,2642.9,2642.8,0.005]
[1730907432675,0.02,2642.9,2642.8,0.005]
[1730907432969,0.01,2642.9,2642.8,0.005]
[1730907433159,0.01,2643.0,2642.8,0.005]
[1730907433375,0.01,2642.9,2642.8,0.07223186]
[1730907433563,0.10459386,2642.9,2642.8,0.005]
[1730907433866,3.88831386,2642.9,2642.8,0.07223186]
[1730907434031,3.88831386,2642.9,2642.8,0.005]
[1730907434032,0.01,2642.9,2642.8,0.005]
[1730907434231,0.01,2642.9,2642.8,0.07223186]
[1730907434446,4.55732,2642.9,2642.8,0.07223186]
[1730907434666,5.10866217,2642.9,2642.8,0.07223186]
[1730907434813,5.10866217,2642.9,2642.8,0.005]
[1730907435661,8.10866217,2642.9,2642.8,0.005]
[1730907435862,12.41374275,2642.9,2642.8,0.005]
[1730907436062,12.41374275,2642.9,2642.3,0.1282881]
[1730907436063,4.61283,2642.4,2642.3,0.1282881]
[1730907436221,5.54817668,2642.4,2642.3,0.1282881]
[1730907437993,5.55817668,2642.4,2642.3,0.1282881]
[1730907438265,8.55817668,2642.4,2642.3,0.1282881]
[1730907438533,8.473543,2642.4,2642.3,0.03143187]
[1730907438726,6.83945,2641.9,2641.8,0.11669274]
[1730907438933,0.01,2640.8,2640.1,0.8247]
[1730907439074,0.01,2640.8,2640.2,0.07573426]
[1730907439417,0.0143,2641.1,2640.1,0.8247]
[1730907439418,0.01,2640.6,2640.1,0.8247]
[1730907439973,0.01,2640.9,2640.2,0.07574499]
[1730907440171,0.01,2640.9,2640.2,0.59429755]
[1730907440382,0.02,2640.9,2640.2,0.59428579]
[1730907440617,0.02,2640.9,2640.2,0.51855256]
[1730907440918,0.01,2640.5,2640.2,0.51855256]
[1730907441103,0.01,2640.5,2640.1,0.90044472]
[1730907441687,0.01,2640.5,2639.8,0.7503]
[1730907441909,0.01,2640.5,2640.2,0.06463229]
[1730907442105,0.01,2640.8,2639.9,0.07574644]
[1730907442316,0.01,2640.7,2640.3,0.0645418]
[1730907442495,0.01,2640.7,2639.9,0.52394151]
[1730907442809,0.01,2640.8,2640.4,0.06445131]
[1730907443022,0.01,2640.7,2640.0,0.55]
[1730907443317,0.01,2640.6,2640.1,0.55543238]
[1730907443720,0.01,2640.7,2640.2,0.55]
[1730907443927,0.01,2640.7,2640.2,0.61463229]
[1730907444077,0.02,2640.7,2640.2,0.69037561]
[1730907444418,0.01,2640.5,2640.2,0.06463229]
[1730907444621,0.02,2640.3,2640.2,0.06463229]
[1730907444835,0.01,2640.0,2639.7,0.1282881]
[1730907445340,0.01,2639.9,2639.7,0.1282881]
[1730907445644,0.01,2640.0,2639.8,0.06245198]
[1730907446000,0.01,2639.8,2639.7,0.1282881]
[1730907446323,0.02,2640.1,2639.7,0.26601574]
[1730907446696,0.01,2640.4,2639.7,4.47532949]
[1730907446918,0.01,2640.4,2639.8,0.52764295]
[1730907447140,0.01,2640.4,2639.8,0.06219107]
[1730907447802,0.01,2640.4,2639.8,0.13794328]
[1730907448225,0.01,2640.4,2639.8,0.06219107]
[1730907448664,0.01,2640.2,2639.8,0.06219107]
[1730907449146,0.01,2640.2,2639.7,0.1282881]
[1730907449346,0.01,2640.0,2639.9,0.06259849]
[1730907449640,0.02,2640.4,2639.8,0.07576137]
[1730907449860,0.02,2640.4,2639.7,0.1282881]
[1730907449861,0.01,2640.2,2639.7,0.1282881]
[1730907450059,0.02,2640.2,2639.8,0.06259204]
[1730907450554,0.02,2640.2,2639.9,0.06250155]
[1730907450850,0.02,2640.2,2639.7,0.1282881]
[1730907451058,0.01,2640.0,2639.8,0.06259204]
[1730907451240,0.01,2639.9,2639.7,0.1282881]
[1730907451443,0.01,2639.8,2639.7,0.1282881]
[1730907451937,0.10470286,2639.8,2639.7,0.1282881]
[1730907452624,0.11471653,2640.1,2639.7,0.1282881]
[1730907452825,0.02,2640.1,2639.7,0.1282881]
[1730907453060,0.11471209,2640.1,2639.7,0.1282881]
[1730907453269,3.80802,2639.9,2639.8,0.05991384]
[1730907453428,0.41027321,2639.9,2639.7,0.1282881]
[1730907453751,0.02,2639.9,2639.7,0.1282881]
[1730907453912,3.78816,2639.8,2639.7,0.1282881]
[1730907454119,0.09472099,2639.8,2639.7,0.1282881]
[1730907455066,0.01,2639.8,2639.7,0.1282881]
[1730907455358,0.01,2639.8,2639.7,0.18636966]
[1730907455558,0.10471656,2640.0,2639.7,0.1282881]
[1730907455866,0.02,2640.1,2639.7,0.1282881]
[1730907456066,0.11470953,2640.1,2639.7,0.1282881]
[1730907456354,0.01,2640.1,2639.8,0.05799107]
[1730907456559,0.01,2640.1,2639.7,0.1282881]
[1730907456714,0.01,2640.1,2639.9,0.05790058]
[1730907456914,0.01,2640.1,2639.7,0.1282881]
[1730907456915,0.01,2640.0,2639.7,0.1282881]
[1730907458324,0.11470251,2640.4,2639.7,0.1282881]
[1730907458526,0.01,2640.4,2639.9,0.8282]
[1730907458723,0.01,2640.6,2639.9,0.8282]
[1730907458948,0.01,2640.6,2639.7,0.1282881]
[1730907458949,0.01,2640.3,2639.7,0.1282881]
[1730907459464,0.01,2640.5,2639.8,0.07575653]
[1730907459465,0.11469566,2640.5,2639.8,0.07575653]
[1730907459764,0.01,2640.5,2639.9,0.07574878]
[1730907460335,0.01,2640.5,2639.8,0.55]
[1730907460537,0.02,2641.0,2640.0,0.55]
[1730907460733,0.02,2641.0,2639.8,4.28508058]
[1730907460734,0.02,2641.0,2640.3,0.7644]
[1730907461069,0.01,2641.0,2640.3,0.7644]
[1730907461271,0.01,2640.8,2640.0,0.55]
[1730907461426,0.01,2640.8,2639.9,0.55]
[1730907461622,0.01,2640.8,2640.0,0.0757422]
[1730907461879,0.01,2640.9,2640.3,0.55]
[1730907462223,0.10467775,2641.1,2640.4,0.07573474]
[1730907462530,0.01,2640.8,2640.4,0.07572875]
[1730907462917,0.01,2640.8,2640.2,0.8143]
[1730907463220,0.02,2641.0,2640.2,0.8143]
[1730907463504,0.01,2640.6,2640.0,0.05682313]
[1730907463833,0.01,2640.6,2640.0,0.13256795]
[1730907464127,0.01,2640.6,2640.0,0.05682313]
[1730907464536,0.01,2640.2,2640.0,0.05682313]
[1730907464778,0.01,2640.2,2639.7,0.20404355]
[1730907465250,0.01,2640.2,2639.7,0.20404441]
[1730907465827,0.01,2640.2,2639.7,0.20404442]
[1730907466145,3.2766654,2640.7,2639.7,0.20404442]
[1730907466377,0.460277,2640.6,2639.7,0.20404442]
[1730907467165,0.460277,2640.6,2639.7,0.1282881]
[1730907467166,3.7872,2640.5,2639.7,0.1282881]
[1730907467376,3.78713,2640.6,2639.7,0.1282881]
[1730907467377,0.7855,2640.4,2639.7,0.1282881]
[1730907467898,4.57282,2640.4,2639.7,0.1282881]
[1730907468173,0.7855,2640.4,2639.7,0.1282881]
[1730907469181,4.57282,2640.4,2639.7,0.1282881]
[1730907469497,3.78775,2640.1,2639.7,0.1282881]
[1730907469659,7.57562,2640.1,2639.7,0.1282881]
[1730907469878,7.57559,2640.1,2639.7,0.1282881]
[1730907470218,3.78789,2640.0,2639.7,0.1282881]
[1730907470558,3.78788,2640.0,2639.7,0.1282881]
[1730907470896,4.244832,2640.3,2639.7,0.1282881]
[1730907471202,0.7855,2640.4,2639.7,0.1282881]
[1730907471500,0.7855,2640.4,2639.8,0.05716654]
[1730907471998,3.78724,2640.5,2639.8,0.05716654]
[1730907472156,0.455334,2640.4,2639.8,0.05716654]
[1730907472359,0.7661,2640.6,2639.7,0.1282881]
[1730907472560,0.7661,2640.0,2639.9,0.05723209]
[1730907472793,0.7661,2640.0,2639.7,0.1282881]
[1730907474074,0.01,2640.5,2639.7,0.1282881]
[1730907474075,0.7661,2640.4,2639.7,0.1282881]
[1730907474265,1.22143,2640.4,2639.7,0.1282881]
[1730907474461,0.7761,2640.4,2639.7,0.1282881]
[1730907474688,4.55426,2639.8,2639.7,0.1282881]
[1730907475163,0.7661,2639.8,2639.7,0.1282881]
[1730907475365,8.34174,2640.1,2639.7,0.1282881]
[1730907475668,3.78809,2639.9,2639.7,0.1282881]
[1730907476120,5.388034,2640.1,2639.7,0.1282881]
[1730907476121,3.78788,2640.0,2639.7,0.1282881]
[1730907476714,3.7881,2639.9,2639.7,0.1282881]
[1730907476897,0.37881,2639.8,2639.7,0.1282881]
[1730907477098,3.78802,2639.9,2639.7,0.1282881]
[1730907477498,0.8162,2640.5,2639.7,0.1282881]
[1730907477739,4.60342,2640.5,2639.7,0.8995881]
[1730907478328,0.8162,2640.5,2639.7,0.8995881]
[1730907478639,0.8162,2640.8,2639.8,4.91083541]
[1730907478840,8.38898,2641.1,2639.9,0.58104235]
[1730907479137,3.78651,2641.0,2639.9,0.05545995]
[1730907479296,3.78651,2641.0,2639.8,0.55]
[1730907479700,3.78651,2641.0,2640.0,0.05585393]
[1730907479936,3.78651,2641.0,2639.8,0.55]
[1730907479937,5.33647852,2641.0,2639.8,0.55]
[1730907480146,3.78651,2641.0,2639.8,0.55]
[1730907480500,3.78651,2641.0,2639.9,0.05600895]
[1730907480701,3.78651,2641.0,2639.8,0.55]
[1730907480904,4.6025,2641.1,2640.0,0.05590232]
[1730907481158,0.8162,2641.5,2640.2,0.7874]
[1730907481350,0.8162,2641.5,2640.0,4.3409829]
[1730907481351,0.8162,2641.5,2640.5,0.55]
[1730907481501,5.395103,2641.5,2640.5,0.55]
[1730907481703,0.8162,2641.5,2640.6,0.0550693]
[1730907481901,3.33,2641.6,2640.6,0.0550693]
[1730907482515,0.7676,2641.8,2640.8,0.55]
[1730907482716,3.78495,2642.1,2640.9,0.90622019]
[1730907482717,4.58285,2642.1,2640.9,0.90622019]
[1730907482944,0.378495,2642.0,2641.0,0.0553534]
[1730907483117,3.78538,2641.8,2641.0,0.0553534]
[1730907483331,3.78527,2641.9,2641.0,0.0553534]
[1730907483524,3.78527,2641.9,2640.9,0.8305]
[1730907483840,0.4163765,2641.8,2640.9,0.8305]
[1730907484679,3.78525,2641.9,2640.9,0.8305]
[1730907484820,6.78479,2642.2,2641.0,0.55]
[1730907485020,6.78479,2642.2,2641.1,0.7732]
[1730907485562,6.78479,2642.2,2641.2,0.05440872]
[1730907485748,6.78479,2642.2,2641.1,0.7732]
[1730907485946,8.96218452,2642.2,2641.2,0.05427962]
[1730907486136,8.96218452,2642.2,2641.1,0.7732]
[1730907486457,3.78573,2641.5,2640.8,0.7565]
[1730907487474,3.78597,2641.4,2640.8,0.7565]
[1730907487651,3.78566,2641.6,2640.8,0.7565]
[1730907487859,4.57074,2641.7,2640.8,0.7565]
[1730907488159,3.0,2641.9,2640.8,0.7565]
[1730907488466,3.78508,2642.0,2640.8,0.7565]
[1730907488832,3.78522,2641.9,2640.8,0.7565]
[1730907489142,3.78508,2642.0,2640.9,0.05423356]
[1730907489321,3.78562,2641.6,2640.9,0.05423356]
[1730907489523,4.08218945,2642.0,2640.9,0.07572811]
[1730907489745,4.08218945,2642.0,2640.8,0.7565]
[1730907489955,3.78537,2641.8,2640.9,0.05448087]
[1730907490158,3.78574,2641.5,2640.9,0.05448087]
[1730907490370,3.78574,2641.5,2640.8,0.7565]
[1730907490548,3.78552,2641.7,2640.8,0.7565]
[1730907490996,0.48763895,2641.9,2640.8,0.7565]
[1730907491181,0.75698284,2641.8,2640.8,0.7565]
[1730907491328,0.7942,2642.1,2641.0,0.827]
[1730907491526,3.33,2642.4,2641.3,4.28508058]
[1730907491860,3.33,2642.4,2641.7,0.55]
[1730907492061,3.33,2642.4,2641.8,0.7642]
[1730907492371,3.78379,2642.9,2641.8,0.81809282]
[1730907492528,0.378379,2642.8,2641.8,0.7642]
[1730907492926,0.378379,2642.8,2641.9,0.05380247]
[1730907493152,3.78425,2642.6,2641.9,0.05380247]
[1730907493339,0.378379,2642.8,2641.9,0.0757001]
[1730907493539,3.7838,2642.9,2641.8,0.7642]
[1730907494065,4.59968,2643.1,2641.8,0.7642]
[1730907494066,3.78412,2642.7,2641.8,0.7642]
[1730907494275,0.756798,2642.6,2641.8,0.7642]
[1730907494425,4.540968,2642.6,2641.8,0.7642]
[1730907494626,3.78474,2642.2,2640.9,0.7981]
[1730907494833,3.78486,2642.1,2640.9,0.7981]
[1730907495035,4.163214,2642.2,2640.9,0.7981]
[1730907495036,3.78532,2641.8,2640.9,0.7981]
[1730907495234,3.78532,2641.8,2641.0,0.0540223]
[1730907495476,3.78551,2641.7,2640.9,0.7981]
[1730907495674,3.78547,2641.7,2640.9,0.7981]
[1730907495973,4.542549,2641.7,2640.9,0.7981]
[1730907496178,0.757079,2641.7,2640.9,0.7981]
[1730907496371,3.7853,2641.8,2640.9,0.7981]
[1730907496875,4.163254,2642.2,2641.1,0.817]
[1730907497174,3.78478,2642.2,2641.2,0.05418029]
[1730907497387,3.78478,2642.2,2641.3,0.817]
[1730907497531,4.541707,2642.2,2641.3,0.817]
[1730907497936,0.756927,2642.2,2641.3,0.817]
[1730907498174,3.78449,2642.4,2641.3,0.817]
[1730907498346,3.78467,2642.3,2641.3,0.817]
[1730907498590,3.78467,2642.3,2641.4,0.07570913]
[1730907498877,3.78467,2642.3,2641.3,0.817]
[1730907499082,4.541028,2642.6,2641.4,0.07570907]
[1730907499248,3.0,2642.5,2641.5,0.8073]
[1730907499583,3.78458,2642.3,2641.6,0.05370592]
[1730907499777,3.78458,2642.3,2641.5,0.8073]
[1730907499935,3.78458,2642.3,2641.6,0.05370592]
[1730907500134,4.541477,2642.3,2641.5,0.8073]
[1730907500332,0.756897,2642.3,2641.6,0.05370592]
[1730907500553,3.78444,2642.4,2641.6,0.05370592]
[1730907500736,0.7839,2642.8,2641.6,0.05370592]
[1730907500737,3.78431,2642.5,2641.6,0.05370592]
[1730907500972,0.7839,2642.8,2641.6,0.05370592]
[1730907500973,3.78479,2642.2,2641.6,0.05370592]
[1730907501140,3.78415,2642.6,2641.5,0.8073]
[1730907501141,4.29508058,2642.5,2641.5,0.8073]
[1730907501365,3.78525,2641.9,2641.5,0.8073]
[1730907502175,3.78524,2641.9,2641.5,0.8073]
[1730907502345,3.78522,2641.9,2641.5,0.8073]
[1730907502674,0.7816,2642.2,2640.6,3.18921627]
[1730907502675,3.78486,2642.1,2640.7,0.7889]
[1730907503082,3.78522,2641.9,2640.9,0.7758]
[1730907503440,0.757008,2641.9,2641.0,0.05420336]
[1730907503643,3.78486,2642.1,2641.0,0.05420336]
[1730907503872,3.78554,2641.7,2641.0,0.05420336]
[1730907504280,3.78525,2641.9,2641.0,0.05420336]
[1730907504281,3.78594,2641.4,2641.0,0.05420336]
[1730907504453,3.78608,2641.3,2641.0,0.05420336]
[1730907504659,3.78608,2641.3,2640.4,0.8163]
[1730907504885,3.78644,2641.1,2640.4,0.8163]
[1730907505044,3.78658,2641.0,2640.5,0.052918]
[1730907505376,0.757202,2641.3,2640.4,0.8163]
[1730907505377,3.7869,2640.7,2640.4,0.8163]
[1730907505590,3.78717,2640.5,2640.1,0.80721846]
[1730907505793,3.0,2640.9,2640.1,0.80721846]
[1730907505994,3.78639,2641.1,2640.1,0.80721846]
[1730907506159,3.78601,2641.3,2640.2,0.85364277]
[1730907506479,3.78582,2641.5,2640.3,0.05336673]
[1730907506687,3.0,2641.6,2640.4,0.7779]
[1730907506884,1.499729,2641.6,2640.4,0.7779]
[1730907507043,1.499729,2641.6,2640.5,0.05295998]
[1730907507044,3.78572,2641.5,2640.5,0.05295998]
[1730907507595,4.60158,2641.8,2640.6,0.7824]
[1730907507795,3.78489,2642.1,2640.9,0.55]
[1730907507954,3.78489,2642.1,2641.0,0.91121418]
[1730907508150,3.78489,2642.1,2641.0,0.835498]
[1730907508385,3.78502,2642.0,2641.0,0.835498]
[1730907509245,3.78581,2641.5,2641.0,0.883398]
[1730907509681,3.78581,2641.5,2641.0,0.8303]
[1730907509887,3.78567,2641.6,2641.0,0.8303]
[1730907510403,3.78595,2641.4,2641.0,0.8303]
[1730907511452,4.28508058,2641.5,2640.1,0.7961]
[1730907511657,3.78657,2641.0,2640.1,0.7961]
[1730907511878,3.78657,2641.0,2640.2,0.05392442]
[1730907512084,3.78657,2641.0,2640.1,0.7961]
[1730907512416,3.78709,2640.6,2640.1,0.7961]
[1730907513255,3.7874,2640.4,2640.1,0.7961]
[1730907513717,3.7874,2640.4,2639.8,0.8208]
[1730907515054,3.78718,2640.5,2639.8,0.8208]
[1730907515254,3.78759,2640.3,2639.8,0.8208]
[1730907515507,3.78787,2640.0,2639.9,0.05080531]
[1730907515687,3.78787,2640.0,2639.7,0.1282881]
[1730907515688,3.78759,2640.2,2639.7,0.1282881]
[1730907515991,3.78816,2639.8,2639.7,0.1282881]
[1730907519257,6.78816,2639.8,2639.7,0.1282881]
[1730907522464,3.78816,2639.8,2639.7,0.1282881]
[1730907522657,14.57717419,2640.1,2639.7,0.1282881]
[1730907522658,1.82463519,2640.1,2639.7,0.1282881]
[1730907522868,3.78738,2640.4,2639.8,0.7605]
[1730907523102,3.78727,2640.5,2639.8,0.81093424]
[1730907523344,3.78727,2640.5,2639.8,0.7605]
[1730907523604,3.33,2640.6,2639.8,0.7605]
[1730907523763,4.12598102,2640.6,2639.8,0.7605]
[1730907524086,3.78695,2640.7,2639.8,0.7605]
[1730907524288,3.78716,2640.5,2639.8,0.7605]
[1730907525266,3.78703,2640.6,2639.8,0.7605]
[1730907525465,3.78695,2640.7,2639.8,0.7605]
[1730907526409,8.33132,2640.9,2639.8,0.7605]
[1730907526577,3.78684,2640.8,2639.9,0.04980089]
[1730907526765,3.7869,2640.7,2639.9,0.04980089]
[1730907526961,3.78709,2640.6,2639.8,0.7605]
[1730907527201,3.7869,2640.7,2639.8,0.7605]
[1730907527371,3.78705,2640.6,2639.8,0.7605]
[1730907527915,3.78673,2640.8,2639.8,0.7605]
[1730907528675,0.838902,2641.0,2639.8,0.7605]
[1730907528676,3.0,2641.0,2639.9,0.55]
[1730907528925,10.89696519,2641.1,2640.0,0.55]
[1730907529158,3.78633,2641.1,2640.1,0.8084]
[1730907529314,3.78633,2641.1,2640.1,0.85763706]
[1730907529644,3.78687,2640.7,2640.1,0.8084]
[1730907529849,3.78671,2640.9,2640.1,0.8084]
[1730907530049,4.986234,2641.1,2640.1,0.8084]
[1730907530523,3.61,2641.2,2640.1,0.8084]
[1730907530730,3.78609,2641.3,2640.3,0.808]
[1730907530928,3.78577,2641.5,2640.3,0.808]
[1730907531126,0.460197,2641.4,2640.3,0.808]
[1730907531324,3.78577,2641.5,2640.5,0.808]
[1730907531820,3.78544,2641.7,2640.7,0.8033]
[1730907532132,4.53975,2641.9,2640.2,4.28508058]
[1730907532133,3.78525,2641.9,2640.9,0.8033]
[1730907532326,3.78495,2642.1,2641.1,0.8033]
[1730907532566,3.78501,2642.0,2641.1,0.8033]
[1730907532759,0.837336,2642.0,2641.1,0.8033]
[1730907532941,0.837336,2642.0,2641.2,0.04810064]
[1730907533143,0.837336,2642.0,2641.1,0.8033]
[1730907533387,3.78517,2641.9,2641.1,0.8033]
[1730907533551,3.78538,2641.8,2641.1,0.8033]
[1730907533787,0.757055,2641.7,2641.1,0.8033]
[1730907534060,3.78545,2641.7,2641.1,0.8033]
[1730907534268,3.78501,2642.0,2641.1,0.8033]
[1730907534453,3.78494,2642.1,2641.1,0.8033]
[1730907534654,6.78476,2642.2,2641.1,0.8033]
[1730907535381,3.78461,2642.3,2641.1,0.8033]
[1730907535601,4.61906,2642.3,2641.1,0.8033]
[1730907535747,3.78482,2642.2,2641.3,0.8317]
[1730907536445,3.78502,2642.0,2641.3,0.8317]
[1730907537087,3.78501,2642.0,2641.3,0.8317]
[1730907537496,3.78496,2642.1,2641.3,0.8317]
[1730907537645,4.246901,2642.1,2641.3,0.8317]
[1730907538087,0.461941,2642.1,2641.3,0.8317]
[1730907539995,4.61903,2642.3,2641.3,0.8317]
[1730907540396,3.78474,2642.2,2641.3,0.8317]
[1730907540912,3.78538,2641.8,2641.3,0.8317]
[1730907541464,8.06997058,2642.1,2641.3,0.8317]
[1730907541465,3.78581,2641.5,2641.3,0.8317]
[1730907541681,3.78581,2641.5,2640.1,0.01]
[1730907541682,3.78581,2641.5,2640.1,0.7622]
[1730907541904,0.757139,2641.4,2640.3,0.7522]
[1730907542399,0.757139,2641.4,2640.0,0.01]
[1730907542400,0.757139,2641.4,2640.5,0.7522]
[1730907542606,4.28508058,2642.1,2640.6,0.04844069]
[1730907542815,4.6191,2642.3,2640.7,0.8333]
[1730907542978,0.83445,2642.3,2640.9,4.83508058]
[1730907543298,10.89482519,2642.6,2641.2,0.7855]
[1730907543714,6.94,2642.7,2641.3,3.04733294]
[1730907543715,3.33,2642.7,2641.3,3.04733294]
[1730907543875,3.78336,2643.2,2641.7,0.7855]
[1730907544063,3.78355,2643.1,2641.8,0.04691341]
[1730907544298,0.756691,2643.0,2641.7,0.7855]
[1730907544510,3.78373,2642.9,2641.7,0.7855]
[1730907544662,3.78451,2642.4,2641.7,0.7855]
[1730907544866,3.78436,2642.5,2641.7,0.7855]
[1730907545615,3.78451,2642.4,2641.8,0.04716312]
[1730907545820,4.29145806,2642.6,2641.7,0.7855]
[1730907546116,3.78451,2642.4,2641.7,0.7855]
[1730907546266,4.29143806,2642.6,2641.7,0.7855]
[1730907546465,0.42914381,2642.5,2641.7,0.7855]
[1730907546781,0.42914381,2642.5,2640.8,0.2408414]
[1730907546782,3.78515,2641.9,2641.8,0.0473244]
[1730907546983,3.78502,2642.0,2641.4,0.7841]
[1730907547183,3.7853,2641.8,2641.4,0.7841]
[1730907547508,3.78545,2641.7,2641.4,0.7841]
[1730907547717,3.7853,2641.8,2641.4,0.7841]
[1730907547865,7.94925,2641.8,2641.4,0.7841]
[1730907548066,3.78553,2641.7,2641.4,0.7841]
[1730907548911,4.16383,2641.8,2641.4,0.7841]
[1730907549669,3.78549,2641.7,2641.4,0.7841]
[1730907549990,3.7853,2641.8,2641.4,0.7841]
[1730907550303,3.7861,2641.3,2641.1,0.8137]
[1730907550951,3.7858,2641.5,2641.1,0.8137]
[1730907551594,3.78602,2641.3,2641.1,0.8137]
[1730907552116,3.78625,2641.2,2640.1,0.8183]
[1730907552605,3.78602,2641.3,2640.2,0.81128489]
[1730907552815,3.78602,2641.3,2640.2,0.88702]
[1730907553393,3.78602,2641.3,2640.2,0.81128489]
[1730907553610,3.78616,2641.2,2640.2,0.81128489]
[1730907553829,3.78647,2641.0,2640.2,0.81128489]
[1730907553979,3.78687,2640.8,2640.2,0.81128489]
[1730907554314,3.78684,2640.8,2640.2,0.7637]
[1730907554525,3.78694,2640.7,2640.2,0.7637]
[1730907554995,3.78694,2640.7,2639.8,0.7815]
[1730907554996,3.78702,2640.6,2639.8,0.7815]
[1730907555202,3.78726,2640.5,2639.8,0.7815]
[1730907555575,3.78726,2640.5,2639.9,0.04840208]
[1730907555811,3.78726,2640.5,2639.8,0.7815]
[1730907556312,3.78726,2640.5,2639.9,0.04802813]
[1730907556524,3.78651,2641.0,2640.0,0.7968]
[1730907556673,3.78695,2640.7,2640.0,0.7968]
[1730907557011,7.57278,2641.1,2640.1,0.07575598]
[1730907557215,3.78638,2641.1,2640.1,0.07574364]
[1730907557516,3.78638,2641.1,2639.6,3.01]
[1730907557517,3.7629,2641.4,2640.2,0.84503733]
[1730907557673,3.78671,2640.9,2640.2,0.84503733]
[1730907558313,3.78705,2640.6,2640.2,0.84503733]
[1730907558520,7.57416,2640.6,2640.2,0.84503733]
[1730907558671,3.78681,2640.8,2640.2,0.7968]
[1730907558909,3.78689,2640.7,2640.2,0.7968]
[1730907559216,6.78644,2641.0,2640.2,0.7968]
[1730907559418,3.78697,2640.7,2640.2,0.7968]
[1730907559601,3.78681,2640.8,2640.2,0.7968]
[1730907559946,3.78699,2640.7,2640.2,0.7968]
[1730907560302,3.78672,2640.9,2640.2,0.7968]
[1730907560540,6.78618,2641.2,2640.2,0.7968]
[1730907560743,7.57369,2640.8,2640.2,0.7968]
[1730907561041,3.78682,2640.8,2640.2,0.7968]
[1730907561242,3.78702,2640.6,2640.2,0.7968]
[1730907561748,3.78682,2640.8,2640.2,0.7968]
[1730907561956,3.78659,2640.9,2640.2,0.7968]
[1730907562261,3.78622,2641.2,2640.3,0.12359887]
[1730907562549,3.78602,2641.3,2640.4,0.7989]
[1730907562910,3.78673,2640.8,2639.8,0.7989]
[1730907563110,0.7923,2641.1,2639.8,0.7989]
[1730907563111,3.78691,2640.7,2640.5,0.04767236]
[1730907563360,3.78691,2640.7,2639.8,0.7989]
[1730907563724,3.78691,2640.7,2639.9,0.04831211]
[1730907564127,4.57868,2641.1,2639.8,0.7989]
[1730907564456,3.78697,2640.7,2639.8,0.8283]
[1730907564665,3.78711,2640.6,2639.9,0.04863513]
[1730907564845,5.336508,2641.1,2639.8,0.8283]
[1730907564846,3.78732,2640.4,2639.8,0.8283]
[1730907565163,3.78746,2640.3,2639.9,0.04846864]
[1730907565602,3.78746,2640.3,2639.8,0.8283]
[1730907565715,3.78783,2640.1,2639.8,0.8283]
[1730907565921,3.78816,2639.8,2639.7,0.1282881]
[1730907566863,3.78802,2639.9,2639.7,0.1282881]
[1730907567430,3.78816,2639.8,2639.7,0.1282881]
[1730907568020,3.78816,2639.8,2638.4,0.39412428]
[1730907568021,3.78876,2639.4,2638.4,0.39412428]
[1730907568235,3.78852,2639.6,2638.5,0.8195777]
[1730907568459,3.78852,2639.6,2638.5,0.845891]
[1730907568460,3.7886,2639.5,2638.5,0.845891]
[1730907569061,3.78901,2639.3,2638.4,1.16422428]
[1730907569233,0.378901,2639.2,2638.4,0.6701]
[1730907569430,3.78882,2639.4,2638.4,0.6701]
[1730907569634,0.8167,2639.3,2637.6,4.35836027]
[1730907569860,0.8167,2639.3,2637.7,0.57197286]
[1730907569861,3.78939,2639.0,2637.7,0.57197286]
[1730907570064,7.57855,2639.1,2637.7,0.6226702]
[1730907570368,3.78926,2639.1,2637.7,0.62267022]
[1730907570670,0.378926,2639.0,2637.8,0.49910305]
[1730907570821,0.378926,2639.0,2637.9,0.1260943]
[1730907571021,0.378926,2639.0,2637.9,4.37730158]
[1730907571222,0.378926,2639.0,2638.0,0.05019911]
[1730907571465,3.0,2639.3,2638.0,4.30149702]
[1730907571767,4.56222,2639.6,2638.3,4.30149702]
[1730907571768,3.78852,2639.6,2638.3,4.30149702]
[1730907571948,0.7737,2639.6,2638.1,4.31149702]
[1730907572151,3.78849,2639.6,2638.4,0.04876717]
[1730907572321,7.39825,2639.8,2638.5,0.7542]
[1730907572517,4.805991,2639.8,2638.7,0.7542]
[1730907572737,4.805991,2639.8,2638.9,0.7542]
[1730907572934,0.7737,2639.5,2638.8,0.04879271]
[1730907573148,0.7737,2639.5,2639.0,0.04861162]
[1730907573354,8.1719,2639.8,2638.7,0.7542]
[1730907573555,3.7884,2639.7,2638.7,0.7542]
[1730907573747,3.78864,2639.5,2638.8,0.04898651]
[1730907574177,3.78864,2639.5,2638.7,0.7542]
[1730907574552,3.78864,2639.5,2638.8,0.04918032]
[1730907574884,3.7889,2639.3,2638.7,0.7542]
[1730907575193,4.546658,2639.3,2638.7,0.7542]
[1730907575353,3.7889,2639.3,2638.7,0.7542]
[1730907575764,7.5774,2639.5,2638.7,0.7542]
[1730907575964,7.57677,2639.7,2638.7,0.7542]
[1730907576168,1.577766,2639.6,2638.7,0.7542]
[1730907576398,4.61392,2640.1,2638.9,0.7724]
[1730907576562,4.544982,2640.3,2639.1,0.7724]
[1730907577011,0.757462,2640.3,2639.3,0.7724]
[1730907577180,3.78739,2640.4,2639.3,0.7724]
[1730907577782,3.78746,2640.3,2639.3,0.7724]